[Event "10th Iberoamericano-ch 2024"]
[Site "Linares"]
[Date "2024.10.01"]
[Round "9.12"]
[White "Matamoros Franco, Carlos S."]
[Black "Bendayan Claros, Aaron"]
[Result "1/2-1/2"]
[Annotator "RC"]
[ECO "A07"]
[WhiteElo "2404"]
[BlackElo "2150"]
[PlyCount "57"]
[EventDate "2024.09.25"]
[EventType "swiss"]
[EventCountry "ESP"]
[SourceTitle "playchess.com"]
[Source "ChessBase"]
[SourceQuality "1"]
[TimeControl "5400+30"]

1. Nf3 {[%emt 0:00:03]} Nf6 {[%emt 0:00:17]} 2. g3 {[%emt 0:00:20]} d5 {[%emt 0:00:18]} 3. Bg2 {[%emt 0:00:23]} c6 {[%emt 0:00:09]} 4. O-O {[%emt 0:00:26]} Bg4 {[%emt 0:00:19]} 5. h3 {[%emt 0:00:39]} Bh5 {[%emt 0:00:58]} 6. c4 {[%emt 0:02:08]} e6 {[%emt 0:00:22]} 7. d4 {[%emt 0:01:04]} Be7 {[%emt 0:11:56]} 8. Nc3 {[%emt 0:00:41]} Nbd7 {[%emt 0:00:37]} 9. cxd5 {[%emt 0:01:04]} cxd5 {[%emt 0:07:58]} 10. Qb3 {[%emt 0:04:48]} Qb6 {[%emt 0:00:38]} 11. Ne5 {[%emt 0:01:11]} Bg6 {[%emt 0:12:35]} 12. Qxb6 {[%emt 0:16:46]} Nxb6 {[%emt 0:06:37]} 13. Bf4 {[%emt 0:02:31]} O-O {[%emt 0:12:00]} 14. Rfc1 {[%emt 0:27:08]} a6 {[%emt 0:10:45]} 15. Nxg6 {[%emt 0:11:57]} hxg6 {[%emt 0:00:26]} 16. Bc7 {[%emt 0:01:37]} Bd8 {[%emt 0:15:19]} 17. Bd6 {[%emt 0:05:18]} Re8 {[%emt 0:00:05]} 18. e4 {[%emt 0:01:20]} Nc4 {[%emt 0:04:02]} 19. Be5 {[%emt 0:04:46]} Nxb2 {[%emt 0:04:19]} 20. exd5 {[%emt 0:01:07]} exd5 {[%emt 0:02:43]} 21. Nxd5 {[%emt 0:04:22]} Nxd5 {[%emt 0:00:42]} 22. Bxd5 {[%emt 0:00:07]} Nd3 {[%emt 0:00:52]} 23. Bxb7 {[%emt 0:03:57]} Ra7 {[%emt 0:00:32]} 24. Bc6 {[%emt 0:00:16]} Re6 {[%emt 0:05:47]} 25. Bd5 {[%emt 0:01:03]} Nxc1 {[%emt 0:00:11]} 26. Rxc1 {[%emt 0:06:54]} Re8 {[%emt 0:00:34]} 27. Rc8 {[%emt 0:00:15]} Rf8 {[%emt 0:00:04]} 28. Rc6 {[%emt 0:00:38]} Bf6 {[%emt 0:02:17]} 29. Bxf6 {[%emt 0:00:41]} 1/2-1/2

[Event "10th Iberoamericano-ch 2024"]
[Site "Linares"]
[Date "2024.10.01"]
[Round "9.13"]
[White "Marin Ferragut, Pau"]
[Black "Veiga, Jose Francisco R P N"]
[Result "1-0"]
[Annotator "RC"]
[ECO "E73"]
[WhiteElo "2314"]
[BlackElo "2412"]
[PlyCount "57"]
[EventDate "2024.09.25"]
[EventType "swiss"]
[EventCountry "ESP"]
[SourceTitle "playchess.com"]
[Source "ChessBase"]
[SourceQuality "1"]
[TimeControl "5400+30"]

1. c4 {[%emt 0:00:12]} Nf6 {[%emt 0:07:17]} 2. Nc3 {[%emt 0:00:22]} g6 {[%emt 0:00:06]} 3. e4 {[%emt 0:00:37]} d6 {[%emt 0:00:05]} 4. d4 {[%emt 0:00:31]} Bg7 {[%emt 0:00:05]} 5. Be2 {[%emt 0:00:26]} O-O {[%emt 0:01:11]} 6. Be3 {[%emt 0:00:28]} e5 {[%emt 0:00:07]} 7. d5 {[%emt 0:00:34]} Na6 {[%emt 0:00:08]} 8. g4 {[%emt 0:00:45]} Nc5 {[%emt 0:00:05]} 9. Bf3 {[%emt 0:00:04]} a5 {[%emt 0:03:09]} 10. h4 {[%emt 0:00:42]} Qd7 {[%emt 0:16:56]} 11. g5 {[%emt 0:00:09]} Ng4 {[%emt 0:00:41]} 12. Bxc5 {[%emt 0:00:02]} dxc5 {[%emt 0:00:11]} 13. Qe2 {[%emt 0:00:04]} f6 {[%emt 0:05:22]} 14. O-O-O {[%emt 0:15:15]} fxg5 {[%emt 0:04:11]} 15. hxg5 {[%emt 0:01:04]} Qf7 {[%emt 0:00:59]} 16. Kb1 {[%emt 0:03:27]} h5 {[%emt 0:00:33]} 17. Rd3 {[%emt 0:09:59]} c6 {[%emt 0:07:06]} 18. a4 {[%emt 0:06:44]} Bd7 {[%emt 0:06:53]} 19. Nh3 {[%emt 0:04:21]} Qe7 {[%emt 0:01:53]} 20. Bg2 {[%emt 0:03:54]} Rf7 {[%emt 0:00:08]} 21. f3 {[%emt 0:03:12]} Raf8 {[%emt 0:00:05]} 22. Qe1 {[%emt 0:02:48]} Bc8 {[%emt 0:00:58]} 23. fxg4 {[%emt 0:11:51]} hxg4 {[%emt 0:00:08]} 24. Qh4 {[%emt 0:00:21]} gxh3 {[%emt 0:00:47]} 25. Rdxh3 {[%emt 0:00:02]} Rf4 {[%emt 0:01:29]} 26. Qh7+ {[%emt 0:00:59]} Kf7 {[%emt 0:00:06]} 27. Qxg7+ {[%emt 0:00:01]} Kxg7 {[%emt 0:00:50]} 28. Rh7+ {[%emt 0:00:01]} Kg8 {[%emt 0:00:10]} 29. Rxe7 {[%emt 0:00:10]} 1-0

[Event "10th Iberoamericano-ch 2024"]
[Site "Linares"]
[Date "2024.10.01"]
[Round "9.14"]
[White "Escalona Landi, Samid Eduardo"]
[Black "Vega Gutierrez, Sabrina"]
[Result "1-0"]
[Annotator "RC"]
[ECO "A04"]
[WhiteElo "2326"]
[BlackElo "2392"]
[PlyCount "94"]
[EventDate "2024.09.25"]
[EventType "swiss"]
[EventCountry "ESP"]
[SourceTitle "playchess.com"]
[Source "ChessBase"]
[SourceQuality "1"]
[TimeControl "5400+30"]

1. Nf3 {[%emt 0:05:17]} c5 {[%emt 0:00:19]} 2. g3 {[%emt 0:00:09]} g6 {[%emt 0:00:38]} 3. Bg2 {[%emt 0:00:10]} Bg7 {[%emt 0:00:11]} 4. d3 {[%emt 0:00:05]} Nc6 {[%emt 0:01:14]} 5. O-O {[%emt 0:00:14]} d6 {[%emt 0:00:22]} 6. Nc3 {[%emt 0:00:50]} Nf6 {[%emt 0:05:04]} 7. e4 {[%emt 0:00:04]} Rb8 {[%emt 0:01:25]} 8. a4 {[%emt 0:00:50]} a6 {[%emt 0:07:34]} 9. h3 {[%emt 0:00:11]} Nd7 {[%emt 0:01:49]} 10. Nd5 {[%emt 0:00:37]} e6 {[%emt 0:02:20]} 11. Ne3 {[%emt 0:00:06]} b5 {[%emt 0:02:31]} 12. axb5 {[%emt 0:00:06]} axb5 {[%emt 0:00:11]} 13. c3 {[%emt 0:00:07]} Qb6 {[%emt 0:06:24]} 14. Nh2 {[%emt 0:06:58]} b4 {[%emt 0:07:10]} 15. Nc4 {[%emt 0:00:17]} Qc7 {[%emt 0:00:17]} 16. Bd2 {[%emt 0:00:07]} bxc3 {[%emt 0:14:06]} 17. bxc3 {[%emt 0:00:06]} Nb6 {[%emt 0:16:44]} 18. Ne3 {[%emt 0:00:06]} O-O {[%emt 0:01:03]} 19. f4 {[%emt 0:00:11]} f5 {[%emt 0:01:10]} 20. g4 {[%emt 0:01:47]} Kh8 {[%emt 0:02:35]} 21. h4 {[%emt 0:00:32]} e5 {[%emt 0:05:12]} 22. exf5 {[%emt 0:03:18]} exf4 {[%emt 0:02:40]} 23. Rxf4 {[%emt 0:00:05]} d5 {[%emt 0:00:42]} 24. Rf1 {[%emt 0:10:58]} d4 {[%emt 0:07:22]} 25. cxd4 {[%emt 0:00:05]} cxd4 {[%emt 0:01:43]} 26. Nc2 {[%emt 0:06:08]} gxf5 {[%emt 0:00:40]} 27. Nb4 {[%emt 0:05:11]} Ne5 {[%emt 0:05:24]} 28. gxf5 {[%emt 0:00:48]} Qd6 {[%emt 0:00:21]} 29. Be4 {[%emt 0:06:30]} Nbd7 {[%emt 0:00:10]} 30. Nd5 {[%emt 0:02:32]} Nf6 {[%emt 0:03:53]} 31. Nxf6 {[%emt 0:00:15]} Bxf6 {[%emt 0:00:06]} 32. Ra7 {[%emt 0:02:40]} Rg8+ {[%emt 0:00:46]} 33. Kh1 {[%emt 0:00:08]} Bd7 {[%emt 0:00:09]} 34. Bf4 {[%emt 0:03:20]} Rg7 {[%emt 0:01:01]} 35. Ng4 {[%emt 0:07:03]} Rbg8 {[%emt 0:00:24]} 36. Nh6 {[%emt 0:03:39]} Rf8 {[%emt 0:00:52]} 37. Qe2 {[%emt 0:01:50]} Bxh4 {[%emt 0:03:42]} 38. Qh2 {[%emt 0:00:07]} Bf6 {[%emt 0:00:21]} 39. Ra5 {[%emt 0:00:18]} Re8 {[%emt 0:00:26]} 40. Rd5 {[%emt 0:05:03]} Qe7 {[%emt 0:00:36]} 41. Bxe5 {[%emt 0:00:31]} Bxe5 {[%emt 0:00:04]} 42. f6 {[%emt 0:05:02]} Bxf6 {[%emt 0:00:11]} 43. Rxd7 {[%emt 0:00:08]} Qxd7 {[%emt 0:00:08]} 44. Rxf6 {[%emt 0:00:04]} Rc8 {[%emt 0:00:54]} 45. Rf1 {[%emt 0:00:17]} Qe8 {[%emt 0:01:09]} 46. Nf5 {[%emt 0:01:11]} Rf7 {[%emt 0:00:52]} 47. Rg1 {[%emt 0:00:21]} Qd7 {[%emt 0:00:34]} 1-0

[Event "10th Iberoamericano-ch 2024"]
[Site "Linares"]
[Date "2024.10.01"]
[Round "9.15"]
[White "Romero Calduch, Sergio"]
[Black "Garcia Fernandez, Victor"]
[Result "1-0"]
[Annotator "RC"]
[ECO "D37"]
[WhiteElo "2276"]
[BlackElo "2353"]
[PlyCount "87"]
[EventDate "2024.09.25"]
[EventType "swiss"]
[EventCountry "ESP"]
[SourceTitle "playchess.com"]
[Source "ChessBase"]
[SourceQuality "1"]
[TimeControl "5400+30"]

1. d4 {[%emt 0:00:04]} Nf6 {[%emt 0:00:32]} 2. c4 {[%emt 0:00:05]} e6 {[%emt 0:00:23]} 3. Nf3 {[%emt 0:00:06]} d5 {[%emt 0:00:11]} 4. Nc3 {[%emt 0:00:07]} dxc4 {[%emt 0:00:25]} 5. e4 {[%emt 0:00:08]} b5 {[%emt 0:00:05]} 6. e5 {[%emt 0:00:06]} Nd5 {[%emt 0:00:07]} 7. Nxb5 {[%emt 0:00:06]} Nb6 {[%emt 0:00:06]} 8. Be2 {[%emt 0:00:12]} Qd7 {[%emt 0:04:14]} 9. Nc3 {[%emt 0:00:34]} Bb7 {[%emt 0:01:59]} 10. O-O {[%emt 0:00:14]} Nc6 {[%emt 0:01:56]} 11. Be3 {[%emt 0:00:09]} Bb4 {[%emt 0:00:28]} 12. Qc1 {[%emt 0:00:50]} Ne7 {[%emt 0:11:13]} 13. a3 {[%emt 0:07:33]} Ba5 {[%emt 0:05:01]} 14. Nd2 {[%emt 0:10:39]} Nf5 {[%emt 0:01:56]} 15. b4 {[%emt 0:18:23]} cxb3 {[%emt 0:00:22]} 16. Nxb3 {[%emt 0:00:19]} Bxc3 {[%emt 0:00:59]} 17. Qxc3 {[%emt 0:00:16]} Bd5 {[%emt 0:08:57]} 18. a4 {[%emt 0:19:19]} Nxa4 {[%emt 0:09:29]} 19. Qb4 {[%emt 0:01:09]} Nb6 {[%emt 0:00:16]} 20. Nc5 {[%emt 0:01:23]} Qd8 {[%emt 0:06:34]} 21. Na6 {[%emt 0:03:12]} Rc8 {[%emt 0:07:30]} 22. Ra3 {[%emt 0:07:14]} h6 {[%emt 0:10:00]} 23. Rc1 {[%emt 0:02:12]} Ne7 {[%emt 0:02:05]} 24. Qd2 {[%emt 0:06:54]} c6 {[%emt 0:11:19]} 25. Nc5 {[%emt 0:06:24]} Rc7 {[%emt 0:00:14]} 26. Rca1 {[%emt 0:00:58]} Nec8 {[%emt 0:05:55]} 27. Qc1 {[%emt 0:00:09]} Nd7 {[%emt 0:01:30]} 28. Bd2 {[%emt 0:04:48]} Qh4 {[%emt 0:05:41]} 29. Nxd7 {[%emt 0:06:11]} Rxd7 {[%emt 0:00:04]} 30. Qc5 {[%emt 0:01:04]} Qd8 {[%emt 0:02:14]} 31. Bb4 {[%emt 0:00:56]} Qb6 {[%emt 0:01:34]} 32. Qxb6 {[%emt 0:03:04]} axb6 {[%emt 0:01:19]} 33. Ra8 {[%emt 0:00:18]} Rd8 {[%emt 0:01:21]} 34. Rb8 {[%emt 0:00:35]} Kd7 {[%emt 0:00:57]} 35. Rb7+ {[%emt 0:01:26]} Ke8 {[%emt 0:00:01]} 36. Rc7 {[%emt 0:00:22]} b5 {[%emt 0:01:00]} 37. Ra8 {[%emt 0:00:53]} c5 {[%emt 0:00:31]} 38. Bxb5+ {[%emt 0:00:20]} Kf8 {[%emt 0:00:02]} 39. Bxc5+ {[%emt 0:00:34]} Kg8 {[%emt 0:00:07]} 40. Rcxc8 {[%emt 0:00:33]} Bxa8 {[%emt 0:00:59]} 41. Rxd8+ {[%emt 0:00:09]} Kh7 {[%emt 0:00:05]} 42. Bd3+ {[%emt 0:00:22]} g6 {[%emt 0:00:23]} 43. Rxh8+ {[%emt 0:00:17]} Kxh8 {[%emt 0:00:06]} 44. Bf8 {[%emt 0:00:09]} 1-0

[Event "10th Iberoamericano-ch 2024"]
[Site "Linares"]
[Date "2024.10.01"]
[Round "9.16"]
[White "Garcia, Jhoel"]
[Black "Rodriguez Vila, Andres"]
[Result "0-1"]
[Annotator "TA"]
[ECO "C03"]
[WhiteElo "2360"]
[BlackElo "2419"]
[PlyCount "46"]
[EventDate "2024.09.25"]
[EventType "swiss"]
[EventCountry "ESP"]
[SourceTitle "playchess.com"]
[Source "ChessBase"]
[SourceQuality "1"]
[TimeControl "5400+30"]

{[%evp 16,46,55,41,49,-33,-28,-79,-75,-78,-70,-58,-37,-59,-29,-15,-13,-30,15,-13,6,8,129,62,121,121,98,-1905,-1902,-29996,-965,-914,-532]} 1. e4 {[%emt 0:00:03]} e6 {[%emt 0:03:17]} 2. d4 {[%emt 0:00:29]} d5 {[%emt 0:00:05]} 3. Nd2 {[%emt 0:00:47]} Be7 {[%emt 0:02:02]} 4. Ngf3 {[%emt 0:00:36]} Nf6 {[%emt 0:00:10]} 5. e5 {[%emt 0:00:23]} Nfd7 {[%emt 0:00:06]} 6. Bd3 {[%emt 0:00:25]} c5 {[%emt 0:00:05]} 7. c3 {[%emt 0:00:04]} Nc6 {[%emt 0:01:10]} 8. O-O {[%emt 0:03:24]} Qb6 {[%emt 0:00:05]} 9. dxc5 $1 {[%emt 0:03:23]} Qc7 {[%emt 0:00:06][%cal Rd7e5] C06: Frans Tarrasch: 3...Pf6 4 e5 Pfd7 5 Ld3 Hoofdvarianten.} {Wit zou moeten spelen} 10. Bb5 {[%emt 0:06:44] Fout (0.8)} (10. Nb3 $1 $14) 10... O-O $15 {[%emt 0:03:19][%cal Rc6e5] OK} 11. c4 $146 {[%emt 0:09:46] Houdt de partij in balans. Fout (0.5)} (11. Nb3 $1 $11) ({Predecessor:} 11. b4 Ndxe5 12. Nxe5 Nxe5 13. f4 Bd7 14. Be2 Ng6 15. Nb3 Bf6 16. Qd3 Rad8 17. Be3 {0-1 Sevgi,V (2256)-Rydl,J (2398) EU-chT U18 16th 2016 (7.5)}) 11... Ndxe5 $17 {[%emt 0:01:55] Zwart is actiever. OK. Zwart staat beter.} 12. cxd5 {[%emt 0:00:40] Beste} exd5 {[%emt 0:01:35]} 13. Nxe5 {[%emt 0:00:27] OK} Nxe5 {[%emt 0:00:50]} 14. Nb3 {[%emt 0:00:46] Beste (Gemakkelijk)} Ng4 {[%emt 0:14:53][%csl Gg4][%cal Rc7h2] Onnauwkeurig} 15. g3 {[%emt 0:05:47] Beste (Gemakkelijk)} Bxc5 {[%emt 0:02:07] Met het idee ...Qb6. Beste (Gemakkelijk)} 16. Be2 $1 {[%emt 0:26:44][%cal Ob3c5] Dreigt te winnen met Nxc5! Sterk} h5 {[%emt 0:11:42] Onnauwkeurig} (16... Nf6 $5 {vereenvoudigt} 17. Nxc5 Qxc5 18. Be3 Qd6) 17. Qxd5 {[%emt 0:04:28] Onnauwkeurig} (17. Nxc5 $5 {vereenvoudigt} Qxc5 18. Bf3 d4 19. Bf4) 17... Bb6 $36 {[%emt 0:02:28][%mdl 2048] Zwart drukt. OK} 18. Qxh5 {[%emt 0:13:49][%cal Re2g4] Beste (Gemakkelijk)} g6 {[%emt 0:00:08] Maintains equilibrium. Fout (1.2)} (18... Nf6 $1 $11 19. Qh4 Bf5) {Ideally, White should attempt.} 19. Qg5 {[%emt 0:04:46] Fout (0.7)} (19. Qh4 $16 {[%cal Re2g4]} Qd7 20. Bf4) {Preferably, Black should attempt.} 19... Nxf2 {[%emt 0:00:08] Fout (0.6)} (19... Qe5 $14 20. Qxe5 (20. Bxg4 Qxg5 21. Bxg5 Bxg4 $11) 20... Nxe5) 20. Rxf2 $16 {[%emt 0:00:52]} Re8 {[%emt 0:00:07] [#] Voorkomt Be3. OK} 21. Kg2 $2 {[%emt 0:11:16][%mdl 8192] [#] Verliest partij (20.0)} Rxe2 $1 $19 {[%emt 0:00:33] Briljant} 22. Kg1 {Onnauwkeurig} (22. Nc5 Bxc5) 22... Re8 (22... Re1+ $142 23. Kg2 Qc6+ 24. Qd5 Qxd5+ 25. Rf3 Rg1#) 23. Bd2 Qc2 {Blunder waarde: Wit=0.75/Zwart=0.58.  Verliest partij:   	Wit=1      	---        Fout:        	Wit=3      	Zwart=2      Onnauwkeurig:    	Wit=2      	Zwart=2      OK:         	Wit=1      	Zwart=4      Beste:        	Wit=4      	Zwart=1      Sterk:        	Wit=1      	---        Briljant:      	---       	Zwart=1} 0-1

[Event "10th Iberoamericano-ch 2024"]
[Site "Linares"]
[Date "2024.10.01"]
[Round "9.17"]
[White "Sos Andreu, Eric"]
[Black "Zambrana, Osvaldo"]
[Result "1/2-1/2"]
[Annotator "RC"]
[ECO "D30"]
[WhiteElo "2364"]
[BlackElo "2409"]
[PlyCount "129"]
[EventDate "2024.09.25"]
[EventType "swiss"]
[EventCountry "ESP"]
[SourceTitle "playchess.com"]
[Source "ChessBase"]
[SourceQuality "1"]
[TimeControl "5400+30"]

1. d4 {[%emt 0:00:03]} d5 {[%emt 0:11:10]} 2. c4 {[%emt 0:00:13]} e6 {[%emt 0:00:04]} 3. Nf3 {[%emt 0:00:10]} h6 {[%emt 0:00:32]} 4. g3 {[%emt 0:00:55]} Nf6 {[%emt 0:00:03]} 5. Bg2 {[%emt 0:00:11]} Bd6 {[%emt 0:00:06]} 6. O-O {[%emt 0:00:21]} O-O {[%emt 0:00:05]} 7. b3 {[%emt 0:04:11]} b6 {[%emt 0:00:21]} 8. Nc3 {[%emt 0:02:05]} Bb7 {[%emt 0:02:05]} 9. Qc2 {[%emt 0:03:05]} Nbd7 {[%emt 0:01:12]} 10. cxd5 {[%emt 0:01:13]} exd5 {[%emt 0:00:47]} 11. Nh4 {[%emt 0:02:32]} Re8 {[%emt 0:07:24]} 12. Nf5 {[%emt 0:08:51]} a6 {[%emt 0:02:44]} 13. Nxd6 {[%emt 0:05:18]} cxd6 {[%emt 0:00:03]} 14. Qf5 {[%emt 0:00:06]} Rc8 {[%emt 0:06:42]} 15. Bd2 {[%emt 0:07:30]} Ne4 {[%emt 0:11:38]} 16. Nxe4 {[%emt 0:00:09]} dxe4 {[%emt 0:00:03]} 17. Rac1 {[%emt 0:00:36]} Nf6 {[%emt 0:00:03]} 18. Bh3 {[%emt 0:04:54]} Nd5 {[%emt 0:04:30]} 19. e3 {[%emt 0:09:27]} g6 {[%emt 0:07:58]} 20. Qd7 {[%emt 0:00:14]} Qxd7 {[%emt 0:00:30]} 21. Bxd7 {[%emt 0:00:06]} Rxc1 {[%emt 0:00:08]} 22. Rxc1 {[%emt 0:00:35]} Rd8 {[%emt 0:00:03]} 23. Bh3 {[%emt 0:01:04]} h5 {[%emt 0:04:22]} 24. Bf1 {[%emt 0:02:27]} Kf8 {[%emt 0:10:20]} 25. Bc4 {[%emt 0:00:47]} Ke7 {[%emt 0:00:28]} 26. h4 {[%emt 0:01:44]} Rc8 {[%emt 0:09:15]} 27. a4 {[%emt 0:04:09]} a5 {[%emt 0:01:09]} 28. Kf1 {[%emt 0:01:44]} Nb4 {[%emt 0:00:23]} 29. Ke2 {[%emt 0:04:09]} d5 {[%emt 0:03:04]} 30. Bb5 {[%emt 0:00:06]} Rxc1 {[%emt 0:00:08]} 31. Bxc1 {[%emt 0:00:04]} Ba6 {[%emt 0:00:07]} 32. Bxa6 {[%emt 0:02:29]} Nxa6 {[%emt 0:00:02]} 33. f3 {[%emt 0:00:19]} Ke6 {[%emt 0:00:08]} 34. Ba3 {[%emt 0:00:50]} Nc7 {[%emt 0:04:38]} 35. Kf2 {[%emt 0:00:31]} Ne8 {[%emt 0:00:12]} 36. b4 {[%emt 0:02:06]} axb4 {[%emt 0:03:23]} 37. Bxb4 {[%emt 0:00:04]} Nf6 {[%emt 0:00:05]} 38. Ba3 {[%emt 0:01:11]} exf3 {[%emt 0:00:28]} 39. Kxf3 {[%emt 0:00:05]} Ne4 {[%emt 0:00:05]} 40. Bb4 {[%emt 0:00:24]} Kf5 {[%emt 0:00:07]} 41. a5 {[%emt 0:02:18]} bxa5 {[%emt 0:00:07]} 42. Bxa5 {[%emt 0:00:04]} g5 {[%emt 0:01:17]} 43. Bc7 {[%emt 0:04:06]} f6 {[%emt 0:01:46]} 44. Bb8 {[%emt 0:02:27]} Nc3 {[%emt 0:00:07]} 45. hxg5 {[%emt 0:01:59]} fxg5 {[%emt 0:00:02]} 46. Bc7 {[%emt 0:05:38]} g4+ {[%emt 0:00:07]} 47. Kf2 {[%emt 0:00:09]} Ke4 {[%emt 0:00:05]} 48. Bf4 {[%emt 0:00:03]} Kd3 {[%emt 0:00:15]} 49. Ke1 {[%emt 0:00:09]} Ne4 {[%emt 0:00:52]} 50. Kd1 {[%emt 0:00:30]} Nxg3 {[%emt 0:11:10]} 51. Bxg3 {[%emt 0:00:02]} Kxe3 {[%emt 0:00:08]} 52. Ke1 {[%emt 0:01:54]} Kf3 {[%emt 0:00:02]} 53. Bh4 {[%emt 0:00:30]} g3 {[%emt 0:00:02]} 54. Kf1 {[%emt 0:00:13]} Kg4 {[%emt 0:00:03]} 55. Bd8 {[%emt 0:01:32]} h4 {[%emt 0:00:04]} 56. Ba5 {[%emt 0:08:32]} h3 {[%emt 0:02:18]} 57. Be1 {[%emt 0:03:07]} Kf4 {[%emt 0:00:05]} 58. Kg1 {[%emt 0:02:35]} Kf3 {[%emt 0:00:03]} 59. Kh1 {[%emt 0:00:25]} g2+ {[%emt 0:00:23]} 60. Kg1 {[%emt 0:00:35]} Ke2 {[%emt 0:00:10]} 61. Bg3 {[%emt 0:00:10]} Ke3 {[%emt 0:00:13]} 62. Be5 {[%emt 0:00:56]} Kf3 {[%emt 0:00:58]} 63. Bd6 {[%emt 0:01:12]} Ke3 {[%emt 0:01:14]} 64. Be5 {[%emt 0:00:05]} Kf3 {[%emt 0:00:05]} 65. Bd6 {[%emt 0:00:03]} 1/2-1/2

[Event "10th Iberoamericano-ch 2024"]
[Site "Linares"]
[Date "2024.10.01"]
[Round "9.18"]
[White "Ticona Rocabado, Licael Roderick"]
[Black "Ynojosa Aponte, Felix Jose"]
[Result "1-0"]
[Annotator "RC"]
[ECO "E15"]
[WhiteElo "2319"]
[BlackElo "2387"]
[PlyCount "123"]
[EventDate "2024.09.25"]
[EventType "swiss"]
[EventCountry "ESP"]
[SourceTitle "playchess.com"]
[Source "ChessBase"]
[SourceQuality "1"]
[TimeControl "5400+30"]

1. d4 {[%emt 0:01:31]} Nf6 {[%emt 0:04:54]} 2. c4 {[%emt 0:00:08]} e6 {[%emt 0:00:02]} 3. Nf3 {[%emt 0:00:08]} b6 {[%emt 0:00:02]} 4. g3 {[%emt 0:00:07]} Bb7 {[%emt 0:00:04]} 5. Bg2 {[%emt 0:00:05]} c5 {[%emt 0:00:04]} 6. d5 {[%emt 0:00:35]} exd5 {[%emt 0:00:07]} 7. cxd5 {[%emt 0:00:05]} Bxd5 {[%emt 0:00:30]} 8. Nc3 {[%emt 0:00:45]} Bc6 {[%emt 0:00:23]} 9. e4 {[%emt 0:00:08]} d6 {[%emt 0:00:35]} 10. O-O {[%emt 0:01:01]} Be7 {[%emt 0:01:17]} 11. Qd3 {[%emt 0:02:12]} O-O {[%emt 0:00:55]} 12. Rd1 {[%emt 0:01:31]} b5 {[%emt 0:04:31]} 13. Nh4 {[%emt 0:04:25]} b4 {[%emt 0:00:50]} 14. Nb5 {[%emt 0:03:07]} Nbd7 {[%emt 0:21:36]} 15. Nf5 {[%emt 0:00:20]} Ne5 {[%emt 0:01:28]} 16. Qe2 {[%emt 0:00:16]} Bxb5 {[%emt 0:00:47]} 17. Qxb5 {[%emt 0:00:26]} Qc7 {[%emt 0:00:27]} 18. Qa6 {[%emt 0:03:23]} Rfd8 {[%emt 0:01:35]} 19. Bg5 {[%emt 0:04:49]} Rab8 {[%emt 0:02:04]} 20. f4 {[%emt 0:03:47]} Ng6 {[%emt 0:04:44]} 21. Rd2 {[%emt 0:02:17]} Rb6 {[%emt 0:04:43]} 22. Qc4 {[%emt 0:00:42]} h6 {[%emt 0:02:32]} 23. Bxh6 {[%emt 0:04:09]} gxh6 {[%emt 0:05:28]} 24. Nxh6+ {[%emt 0:00:07]} Kg7 {[%emt 0:00:11]} 25. Nxf7 {[%emt 0:00:14]} Re8 {[%emt 0:01:29]} 26. Ng5 {[%emt 0:00:09]} Bf8 {[%emt 0:00:07]} 27. Ne6+ {[%emt 0:01:22]} Rxe6 {[%emt 0:00:08]} 28. Qxe6 {[%emt 0:00:04]} c4 {[%emt 0:00:33]} 29. Kh1 {[%emt 0:04:10]} c3 {[%emt 0:03:34]} 30. bxc3 {[%emt 0:00:30]} bxc3 {[%emt 0:00:11]} 31. Rc2 {[%emt 0:00:04]} d5 {[%emt 0:01:56]} 32. Qf5 {[%emt 0:00:06]} dxe4 {[%emt 0:00:59]} 33. Bxe4 {[%emt 0:00:44]} Nxe4 {[%emt 0:00:07]} 34. Qxe4 {[%emt 0:00:03]} Be7 {[%emt 0:04:53]} 35. Rd1 {[%emt 0:04:46]} Bf6 {[%emt 0:01:01]} 36. h4 {[%emt 0:01:09]} Qb7 {[%emt 0:02:26]} 37. Qxb7+ {[%emt 0:01:10]} Rxb7 {[%emt 0:00:01]} 38. h5 {[%emt 0:02:40]} Ne7 {[%emt 0:01:43]} 39. g4 {[%emt 0:02:28]} Rb2 {[%emt 0:01:20]} 40. Rcc1 {[%emt 0:00:01]} Rd2 {[%emt 0:05:32]} 41. Rxd2 {[%emt 0:00:15]} cxd2 {[%emt 0:00:01]} 42. Rd1 {[%emt 0:00:01]} Bc3 {[%emt 0:00:01]} 43. Kg2 {[%emt 0:00:12]} Nd5 {[%emt 0:02:18]} 44. Kf3 {[%emt 0:00:15]} Nb4 {[%emt 0:17:46]} 45. Ke4 {[%emt 0:09:35]} Nxa2 {[%emt 0:00:03]} 46. Kd3 {[%emt 0:01:09]} Bb4 {[%emt 0:00:53]} 47. g5 {[%emt 0:01:34]} Nc1+ {[%emt 0:01:05]} 48. Kc4 {[%emt 0:00:01]} a5 {[%emt 0:00:20]} 49. h6+ {[%emt 0:04:19]} Kh8 {[%emt 0:01:49]} 50. g6 {[%emt 0:02:18]} Ne2 {[%emt 0:00:14]} 51. f5 {[%emt 0:00:16]} Ng3 {[%emt 0:02:04]} 52. f6 {[%emt 0:01:35]} Nf5 {[%emt 0:01:51]} 53. g7+ {[%emt 0:03:41]} Kg8 {[%emt 0:01:44]} 54. Rh1 {[%emt 0:01:02]} Nxh6 55. Rxh6 {[%emt 0:00:05]} d1=Q {[%emt 0:01:09]} 56. Rh8+ {[%emt 0:00:02]} Kf7 {[%emt 0:00:02]} 57. g8=Q+ {[%emt 0:00:10]} Kxf6 {[%emt 0:00:02]} 58. Rh6+ {[%emt 0:00:13]} Kf5 {[%emt 0:00:25]} 59. Qe6+ {[%emt 0:01:01]} Kf4 {[%emt 0:00:02]} 60. Rf6+ {[%emt 0:00:43]} Kg3 {[%emt 0:00:15]} 61. Qe3+ {[%emt 0:00:35]} Kh4 62. Qf4+ {[%emt 0:00:15]} 1-0